bitfinex/quotes_BTCUSD_20240712
["timestamp","ask_amount","ask_price","bid_price","bid_amount"]
[1720811343441,1.23900858,58353.0,58352.0,0.02383436]
[1720811343691,0.55352658,58353.0,58352.0,0.02383436]
[1720811344120,0.89626758,58353.0,58352.0,0.02383436]
[1720811344341,0.89726758,58353.0,58352.0,0.02783436]
[1720811344847,0.857852,58353.0,58352.0,0.02783436]
[1720811345078,0.89801161,58353.0,58352.0,0.02783436]
[1720811346710,0.89801161,58353.0,58352.0,0.04055155]
[1720811347168,0.89801161,58353.0,58352.0,0.02783436]
[1720811348098,0.89807042,58353.0,58352.0,0.02783436]
[1720811348343,0.89807088,58353.0,58352.0,0.02783436]
[1720811349751,0.90875547,58353.0,58352.0,0.02783436]
[1720811350226,1.08220027,58353.0,58352.0,0.02783436]
[1720811350727,1.25149647,58353.0,58352.0,0.013208]
[1720811351140,1.61338821,58353.0,58352.0,0.013208]
[1720811351143,1.6235623,58353.0,58352.0,0.013208]
[1720811351649,1.62371863,58353.0,58352.0,0.013208]
[1720811351887,1.96645963,58353.0,58352.0,0.013208]
[1720811352387,1.96545963,58353.0,58352.0,0.009208]
[1720811352868,1.8128833,58353.0,58352.0,0.009208]
[1720811353096,1.8148833,58353.0,58352.0,0.009208]
[1720811353576,1.8128833,58353.0,58352.0,0.009208]
[1720811354033,1.8158833,58353.0,58352.0,0.009208]
[1720811354986,1.81546065,58353.0,58352.0,0.009208]
[1720811355447,1.81246014,58353.0,58352.0,0.009208]
[1720811355698,1.99983378,58353.0,58352.0,0.009208]
[1720811355926,2.14178749,58353.0,58352.0,0.009208]
[1720811356204,2.13978749,58353.0,58352.0,0.009208]
[1720811356437,2.39269036,58353.0,58352.0,0.009208]
[1720811356669,2.39569036,58353.0,58352.0,0.009208]
[1720811357103,2.13978749,58353.0,58352.0,0.009208]
[1720811357270,2.14278749,58353.0,58352.0,0.009208]
[1720811357749,2.39565188,58353.0,58352.0,0.009208]
[1720811357953,2.39583974,58353.0,58352.0,0.009208]
[1720811358332,2.39583937,58353.0,58352.0,0.009208]
[1720811358533,2.14297437,58353.0,58352.0,0.009208]
[1720811358827,2.48571537,58353.0,58352.0,0.009208]
[1720811359303,2.54778961,58353.0,58352.0,0.009208]
[1720811359529,2.54778961,58353.0,58352.0,0.00914298]
[1720811361154,1.87772126,58353.0,58352.0,0.00914298]
[1720811361666,1.87738571,58353.0,58352.0,0.00914298]
[1720811361902,2.47280832,58353.0,58352.0,0.00914298]
[1720811362096,2.15805247,58353.0,58352.0,0.00914298]
[1720811362364,2.59609156,58353.0,58352.0,0.00914298]
[1720811363277,2.76632896,58353.0,58352.0,0.00914298]
[1720811365255,2.86634439,58353.0,58352.0,0.00914298]
[1720811365745,2.86631812,58353.0,58352.0,0.00914298]
[1720811366446,2.61379048,58353.0,58352.0,0.00914298]
[1720811367186,2.42841684,58353.0,58352.0,0.00914298]
[1720811367413,2.61379048,58353.0,58352.0,0.00914298]
[1720811367611,2.42841684,58353.0,58352.0,0.00914298]
[1720811368018,2.6136476,58353.0,58352.0,0.00914298]
[1720811368396,2.42820625,58353.0,58352.0,0.00914298]
[1720811368829,2.70387989,58353.0,58352.0,0.00914298]
[1720811369487,2.77260989,58353.0,58352.0,0.00914298]
[1720811371052,2.58723625,58353.0,58352.0,0.00914298]
[1720811371731,2.54751649,58353.0,58352.0,0.00914298]
[1720811371936,2.58671704,58353.0,58352.0,0.00914298]
[1720811372629,2.41647964,58353.0,58352.0,0.00914298]
[1720811372839,2.89407242,58353.0,58352.0,0.00914298]
[1720811373046,2.89406193,58353.0,58352.0,0.00914298]
[1720811373260,2.74169055,58353.0,58352.0,0.00914298]
[1720811373701,2.78338414,58353.0,58352.0,0.00914298]
[1720811373912,3.05362154,58353.0,58352.0,0.00907505]
[1720811374111,1.94773464,58352.0,58351.0,0.002]
[1720811374346,2.02693519,58352.0,58351.0,0.002]
[1720811374562,2.19707259,58352.0,58351.0,0.002]
[1720811374776,2.53981959,58352.0,58351.0,0.002]
[1720811375220,2.58036521,58352.0,58351.0,0.002]
[1720811375661,2.54145631,58352.0,58351.0,0.002]
[1720811375881,2.83371866,58352.0,58351.0,0.002]
[1720811376098,2.58136139,58352.0,58351.0,0.002]
[1720811377187,2.39608775,58352.0,58351.0,0.002]
[1720811377618,2.27631308,58352.0,58351.0,0.002]
[1720811378092,2.27604628,58352.0,58351.0,0.002]
[1720811378309,2.31659998,58352.0,58351.0,0.002]
[1720811378525,2.31666665,58352.0,58351.0,0.002]
[1720811378963,2.31656665,58352.0,58351.0,0.002]
[1720811379214,2.31646665,58352.0,58351.0,0.002]
[1720811379673,1.78341965,58352.0,58351.0,0.002]
[1720811379914,0.897653,58352.0,58351.0,0.16092636]
[1720811380128,0.897653,58352.0,58351.0,0.16122636]
[1720811380349,0.897553,58352.0,58351.0,0.1728774]
[1720811380576,1.05140466,58352.0,58351.0,0.1725774]
[1720811380798,0.897553,58352.0,58351.0,0.1462]
[1720811381019,1.2991,58352.0,58351.0,0.1462]
[1720811381453,1.47217233,58352.0,58351.0,0.1462]
[1720811381957,1.29900408,58352.0,58351.0,0.1462]
[1720811382164,1.57208422,58352.0,58351.0,0.1462]
[1720811382589,1.39900408,58352.0,58351.0,0.1462]
[1720811383020,1.39890408,58352.0,58351.0,0.1462]
[1720811383231,1.34010408,58352.0,58351.0,0.1482]
[1720811383448,1.39990408,58352.0,58351.0,0.1482]
[1720811384110,1.39990408,58352.0,58351.0,0.004]
[1720811384553,1.74265108,58352.0,58351.0,0.004]
[1720811384764,1.83365089,58352.0,58351.0,0.004]
[1720811385224,1.701961,58352.0,58351.0,0.002]
[1720811385404,1.7429284,58352.0,58351.0,0.002]
[1720811385890,1.74276283,58352.0,58351.0,0.002]
[1720811388738,1.74299241,58352.0,58351.0,0.0021]
[1720811388952,1.91322981,58352.0,58351.0,0.0021]
[1720811390090,1.74299241,58352.0,58351.0,0.0021]
[1720811393391,1.99577628,58352.0,58351.0,0.0021]
[1720811393860,1.74299241,58352.0,58351.0,0.0021]
[1720811395604,1.99577628,58352.0,58351.0,0.0021]
[1720811395812,1.95564487,58352.0,58351.0,0.0021]
[1720811396029,2.18119854,58352.0,58351.0,0.0021]
[1720811396231,2.54107981,58352.0,58351.0,0.0021]
[1720811397915,2.37084241,58352.0,58351.0,0.0021]
[1720811398163,2.37175726,58352.0,58351.0,0.0021]
[1720811398369,2.47610929,58352.0,58351.0,0.0021]
[1720811398591,2.55300929,58352.0,58351.0,0.0021]
[1720811398816,2.69551307,58352.0,58351.0,0.0021]
[1720811399260,2.8007897,58352.0,58351.0,0.0021]
[1720811399514,2.8077897,58352.0,58351.0,0.0021]
[1720811400233,2.8077897,58352.0,58351.0,1e-08]
[1720811400492,1.602503,58339.0,58338.0,0.0629]
[1720811400711,1.83283808,58339.0,58338.0,0.0629]
[1720811401428,2.0860678,58339.0,58338.0,0.0629]
[1720811401653,1.83284253,58339.0,58338.0,0.0629]
[1720811401910,2.08604144,58339.0,58338.0,0.0629]
[1720811402218,1.84178253,58339.0,58338.0,0.0629]
[1720811402985,0.99709653,58339.0,58338.0,0.15542636]
[1720811403232,0.99709653,58339.0,58338.0,0.81478371]
[1720811403233,0.04003953,58339.0,58338.0,0.81478371]
[1720811403467,0.04003953,58339.0,58338.0,1.16939196]
[1720811403720,0.04003953,58339.0,58338.0,1.29536116]
[1720811404400,0.04003953,58339.0,58338.0,1.23536116]
[1720811404693,0.34496864,58344.0,58343.0,0.01502636]
[1720811404694,0.34494108,58344.0,58343.0,0.01502636]
[1720811404941,0.4851045,58344.0,58343.0,0.15672636]
[1720811405184,0.48510466,58344.0,58343.0,0.16848514]
[1720811405642,0.82789866,58344.0,58343.0,0.16848514]
[1720811406120,0.82889866,58344.0,58343.0,0.16848514]
[1720811407580,0.82817567,58344.0,58343.0,0.16848514]
[1720811408060,0.82817568,58344.0,58343.0,0.18562692]
[1720811408283,1.17096968,58344.0,58343.0,0.17060056]
[1720811408519,1.34023006,58344.0,58343.0,0.17060056]
[1720811408744,1.34023006,58344.0,58343.0,0.15884178]
[1720811409463,1.33923006,58344.0,58343.0,0.15884178]
[1720811410026,1.33917838,58344.0,58343.0,0.15884178]
[1720811410732,1.34017838,58344.0,58343.0,0.15884178]
[1720811411225,1.29972732,58344.0,58343.0,0.15884178]
[1720811411454,1.33917356,58344.0,58343.0,0.15884178]
[1720811413679,1.33917356,58344.0,58343.0,0.17386814]
[1720811414150,1.33917356,58344.0,58343.0,0.15884178]
[1720811414620,1.33925623,58344.0,58343.0,0.15884178]
[1720811414879,1.33925623,58344.0,58343.0,0.17356814]
[1720811415138,1.29972732,58344.0,58343.0,0.17356814]
[1720811415378,1.33925626,58344.0,58343.0,0.17356814]
[1720811417500,1.29972732,58344.0,58343.0,0.17386814]
[1720811417730,1.33975511,58344.0,58343.0,0.17386814]
[1720811418219,1.34075512,58344.0,58343.0,0.17386814]
[1720811418452,0.32524974,58344.0,58343.0,0.40526814]
[1720811418709,0.05171425,58344.0,58343.0,1.09086814]
[1720811418949,0.05171425,58344.0,58343.0,1.57451373]
[1720811419459,0.16851745,58344.0,58343.0,1.57451373]
[1720811419690,0.16951745,58344.0,58343.0,1.57451373]
[1720811420171,0.16851745,58344.0,58343.0,1.57451373]
[1720811420420,0.0400278,58344.0,58343.0,0.18562692]
[1720811420658,0.19426963,58344.0,58343.0,0.18562692]
[1720811420892,0.8970128,58344.0,58343.0,0.18562692]
[1720811421320,1.199779,58344.0,58343.0,0.17060056]
[1720811421585,1.199779,58344.0,58343.0,0.03290056]
[1720811421586,1.35209733,58344.0,58343.0,0.03290056]
[1720811421820,1.35209733,58344.0,58343.0,0.02114178]
[1720811422063,1.35209733,58344.0,58343.0,0.01714178]
[1720811422064,1.35109733,58344.0,58343.0,0.01714178]
[1720811422253,1.35209733,58344.0,58343.0,0.02614178]
[1720811422747,1.55308706,58344.0,58343.0,0.01714178]
[1720811422969,1.55208706,58344.0,58343.0,0.01714178]
[1720811423186,1.89588106,58344.0,58343.0,0.02414178]
[1720811423403,1.89552773,58344.0,58343.0,0.02414178]
[1720811423894,1.754338,58344.0,58343.0,0.02414178]
[1720811424603,1.754338,58344.0,58343.0,0.01714178]
[1720811424604,1.75342028,58344.0,58343.0,0.01714178]
[1720811424791,1.75342028,58344.0,58343.0,0.01814178]
[1720811425271,1.75341992,58344.0,58343.0,0.01814178]
[1720811425485,1.75341992,58344.0,58343.0,0.01714178]
[1720811425703,1.92365732,58344.0,58343.0,0.01814178]
[1720811426148,1.75341992,58344.0,58343.0,0.01814178]
[1720811426597,1.76410823,58344.0,58343.0,0.01814178]
[1720811427743,1.75317433,58344.0,58343.0,0.01814178]
[1720811427988,1.7531748,58344.0,58343.0,0.01814178]
[1720811430883,1.199943,58336.0,58335.0,0.13545478]
[1720811431153,1.24041133,58336.0,58335.0,0.13545478]
[1720811431393,1.24002208,58336.0,58335.0,0.13545478]
[1720811432094,1.23992208,58336.0,58335.0,0.13545478]
[1720811432324,1.24092208,58336.0,58335.0,0.13745478]
[1720811432536,1.24092208,58336.0,58335.0,0.15248114]
[1720811433371,1.41443028,58336.0,58335.0,0.15248114]
[1720811434593,1.37434691,58336.0,58335.0,0.15248114]
[1720811434793,1.07177743,58336.0,58335.0,0.15248114]
[1720811434996,1.07177743,58336.0,58335.0,0.66675114]
[1720811434997,0.04127152,58336.0,58335.0,0.66675114]
[1720811435194,0.04125615,58336.0,58335.0,0.80055158]
[1720811435435,0.19546436,58336.0,58335.0,0.8130184]
[1720811435624,0.20615129,58336.0,58335.0,0.8130184]
[1720811435990,0.05194308,58336.0,58335.0,0.8130184]
[1720811436189,0.20615129,58336.0,58335.0,0.7531184]
[1720811436406,0.20615129,58336.0,58335.0,0.67931796]
[1720811436616,0.05194308,58336.0,58335.0,0.67931796]
[1720811436825,0.20615129,58336.0,58335.0,0.67931796]
[1720811437035,0.20615129,58336.0,58335.0,0.88260454]
[1720811437235,0.20303836,58336.0,58335.0,0.88260454]
[1720811437645,0.171409,58340.0,58339.0,0.0002]
[1720811437852,0.514212,58342.0,58341.0,0.01502636]
[1720811438069,0.52489877,58342.0,58341.0,0.16847524]
[1720811439357,0.18208977,58342.0,58341.0,0.20846416]
[1720811439779,0.18208977,58342.0,58341.0,0.26846416]
[1720811439986,0.18208977,58342.0,58341.0,0.16847524]
[1720811440620,0.18208977,58342.0,58341.0,0.16747524]
[1720811441265,0.18208977,58342.0,58341.0,0.17047524]
[1720811441674,0.171403,58342.0,58341.0,0.17047524]
[1720811441889,0.171403,58342.0,58341.0,0.16747524]
[1720811442096,0.172403,58342.0,58341.0,0.17047524]
[1720811442310,0.515209,58342.0,58341.0,0.17047524]
[1720811442529,0.8687016,58342.0,58341.0,0.17047524]
[1720811442959,0.5258956,58342.0,58341.0,0.17047524]
[1720811443624,0.515209,58342.0,58341.0,0.17047524]
[1720811444605,0.515209,58342.0,58341.0,0.17027524]
[1720811444823,0.515209,58342.0,58341.0,0.15644888]
[1720811445225,0.5553175,58342.0,58341.0,0.15644888]
[1720811445632,0.5553175,58342.0,58341.0,0.17027524]
[1720811446027,0.9989671,58342.0,58341.0,0.17027524]
[1720811446252,0.8981235,58342.0,58341.0,0.17027524]
[1720811446462,0.8981235,58342.0,58341.0,0.15782636]
[1720811447177,0.5553175,58342.0,58341.0,0.15802636]
[1720811447600,0.72879305,58342.0,58341.0,0.15802636]
[1720811447771,0.8981235,58342.0,58341.0,0.15802636]
[1720811448805,0.5553175,58342.0,58341.0,0.15802636]
[1720811449185,0.5553175,58342.0,58341.0,0.17047524]
[1720811449400,0.55555864,58342.0,58341.0,0.17047524]
[1720811450952,0.89836464,58342.0,58341.0,0.17047524]
[1720811452334,0.55555864,58342.0,58341.0,0.17047524]
[1720811452582,0.55555864,58342.0,58341.0,0.15802636]
[1720811452821,0.89836464,58342.0,58341.0,0.15802636]
[1720811453055,0.89810306,58342.0,58341.0,0.17047524]
[1720811453176,0.89810307,58342.0,58341.0,0.17047524]
[1720811453405,0.89807771,58342.0,58341.0,0.17047524]
[1720811455086,0.55527171,58342.0,58341.0,0.17047524]
[1720811455296,0.04106271,58342.0,58341.0,0.85122516]
[1720811455472,0.19529088,58342.0,58341.0,1.19403716]
[1720811455684,0.04106271,58342.0,58341.0,1.19403716]
[1720811455849,0.04076811,58342.0,58341.0,1.19403716]
[1720811456278,0.04076763,58342.0,58341.0,1.19403716]
[1720811457908,0.04076763,58342.0,58341.0,1.14750524]
[1720811459842,0.04054328,58342.0,58341.0,1.14750524]
[1720811460306,0.04054328,58342.0,58341.0,1.69031724]
[1720811460532,0.16900077,58342.0,58341.0,1.69031724]
[1720811460758,0.10376568,58342.0,58341.0,1.69031724]
[1720811461021,0.001,58342.0,58341.0,1.69031724]
[1720811461243,0.07806879,58342.0,58341.0,1.69031724]
[1720811461982,0.07806879,58342.0,58341.0,2.31372924]
[1720811462202,0.001,58342.0,58341.0,2.31372924]
[1720811462926,0.15489375,58354.0,58351.0,0.99090836]
[1720811463134,0.04036044,58352.0,58351.0,1.07350836]
[1720811463572,0.04036044,58352.0,58351.0,1.08592736]
[1720811464268,0.04036044,58352.0,58351.0,1.08892736]
[1720811464480,0.04036044,58352.0,58351.0,1.1720961]
[1720811464699,0.04036044,58352.0,58351.0,1.2320961]
[1720811465405,0.04055117,58352.0,58351.0,1.2320961]
[1720811466367,0.55567117,58352.0,58351.0,0.015419]
[1720811466587,0.55567117,58352.0,58351.0,0.02944536]
[1720811466805,0.55567117,58352.0,58351.0,0.01702636]
[1720811467247,0.21192417,58352.0,58351.0,0.01702636]
[1720811467690,0.21192417,58352.0,58351.0,0.03006405]
[1720811468349,0.89841817,58352.0,58351.0,0.01603769]
[1720811468564,1.24116517,58352.0,58351.0,0.02986405]
[1720811468780,1.24116517,58352.0,58351.0,0.01682636]
[1720811469222,0.89741817,58352.0,58351.0,0.01702636]
[1720811469688,0.89741817,58352.0,58351.0,0.03006405]
[1720811469927,0.89741817,58352.0,58351.0,0.16776405]
[1720811469928,0.04055117,58352.0,58351.0,0.16776405]
[1720811470364,0.19452464,58352.0,58351.0,0.16776405]
[1720811470795,0.19452464,58352.0,58351.0,0.81642598]
[1720811471012,0.04055117,58352.0,58351.0,0.68189305]
[1720811471270,0.04055117,58352.0,58351.0,0.74189305]
[1720811471492,0.04055117,58352.0,58351.0,1.08464605]
[1720811471934,0.04055117,58352.0,58351.0,0.74189305]
[1720811472436,0.04071219,58352.0,58351.0,0.74189305]
[1720811472868,0.04044754,58352.0,58351.0,0.74189305]
[1720811473334,0.89831454,58352.0,58351.0,0.01603769]
[1720811473570,0.21182054,58352.0,58351.0,0.03006405]
[1720811473821,0.04044754,58352.0,58351.0,0.32920236]
[1720811474045,0.04044754,58352.0,58351.0,0.344413]
[1720811474714,0.04044754,58352.0,58351.0,0.44774961]
[1720811475221,0.03811533,58352.0,58351.0,0.344413]
[1720811475452,0.03811533,58352.0,58351.0,0.341413]
[1720811475453,0.00083,58352.0,58351.0,0.341413]
[1720811475907,0.00083,58352.0,58351.0,0.343413]
[1720811476145,0.03811551,58352.0,58351.0,0.343413]
[1720811476364,0.03811551,58352.0,58351.0,0.341413]
[1720811476795,0.03811551,58352.0,58351.0,0.344413]
[1720811477418,0.03811551,58352.0,58351.0,0.404413]
[1720811478599,0.03811551,58352.0,58351.0,0.173037]
[1720811478868,0.03842847,58352.0,58351.0,0.173137]
[1720811479291,0.03842847,58352.0,58351.0,0.032337]
[1720811479292,0.55254847,58352.0,58351.0,0.032337]
[1720811479508,0.89629547,58352.0,58351.0,0.032337]
[1720811479719,0.89629547,58352.0,58351.0,0.01712636]
[1720811481735,1.23904247,58352.0,58351.0,0.0031]
[1720811481944,1.39884247,58352.0,58351.0,0.0031]
[1720811482164,1.39867339,58352.0,58351.0,0.0031]
[1720811482596,1.361244,58352.0,58351.0,0.0031]
[1720811482819,1.39867384,58352.0,58351.0,0.0001]
[1720811483044,1.39867384,58352.0,58351.0,0.0021]
[1720811483266,1.39867384,58352.0,58348.0,0.01382636]
[1720811483267,1.199677,58349.0,58348.0,0.01382636]
[1720811483477,1.23810684,58349.0,58348.0,0.01382636]
[1720811483961,1.23810684,58349.0,58348.0,0.01402636]
[1720811484171,1.41148894,58349.0,58348.0,0.01402636]
[1720811484388,1.23810684,58349.0,58348.0,0.01402636]
[1720811484825,1.4114935,58349.0,58348.0,0.01402636]
[1720811485107,1.41192142,58349.0,58348.0,0.01402636]
[1720811485553,1.41192771,58349.0,58348.0,0.01402636]
[1720811486041,1.2385347,58349.0,58348.0,0.01402636]
[1720811486291,1.2385347,58349.0,58348.0,0.01782636]
[1720811486518,1.2384347,58349.0,58348.0,0.01782636]
[1720811486731,1.2384347,58349.0,58348.0,0.01382636]
[1720811486916,1.2394347,58349.0,58348.0,0.01882636]
[1720811487161,1.3828347,58349.0,58348.0,0.01882636]
[1720811487380,1.3828347,58349.0,58348.0,0.005]
[1720811488593,1.3828347,58349.0,58348.0,0.01902636]
[1720811488865,1.201577,58349.0,58348.0,0.01902636]
[1720811489112,1.23854974,58349.0,58348.0,0.01902636]
[1720811489364,1.41195211,58349.0,58348.0,0.01902636]
[1720811489582,1.41195211,58349.0,58348.0,0.01882636]
[1720811489802,1.23844974,58349.0,58348.0,0.005]
[1720811490267,1.23844974,58349.0,58348.0,0.01882636]
[1720811491588,1.24859152,58349.0,58348.0,0.01882636]
[1720811492020,1.24859152,58349.0,58348.0,0.01902636]
[1720811492244,1.24794909,58349.0,58348.0,0.01902636]
[1720811492886,1.24794909,58349.0,58348.0,0.01882636]
[1720811492889,1.21151878,58349.0,58348.0,0.01882636]
[1720811493143,1.24795102,58349.0,58348.0,0.01882636]
[1720811493378,1.24795102,58349.0,58348.0,0.00168576]
[1720811493613,1.24785102,58349.0,58348.0,0.00188576]
[1720811493822,1.24785102,58349.0,58348.0,0.00198576]
[1720811495065,1.24689832,58349.0,58348.0,0.00198576]
[1720811495531,1.24589832,58349.0,58348.0,0.00198576]
[1720811495981,1.24689832,58349.0,58348.0,0.00798576]
[1720811496438,0.04762132,58349.0,58348.0,0.15318576]
[1720811496682,0.04762132,58349.0,58348.0,0.22996764]
[1720811496683,0.03747954,58349.0,58348.0,0.22996764]
[1720811496926,0.03747954,58349.0,58348.0,0.16996764]
[1720811497165,0.1916766,58349.0,58348.0,1.2083758]
[1720811497643,0.1916766,58349.0,58348.0,1.20494844]
[1720811497644,0.03747954,58349.0,58348.0,1.20494844]
[1720811498998,0.03763081,58349.0,58348.0,1.20494844]
[1720811499733,0.03763081,58349.0,58348.0,1.54771844]
[1720811500445,0.03763081,58349.0,58348.0,1.42966264]
[1720811500678,0.03763081,58349.0,58348.0,1.08689264]
[1720811502142,0.03763081,58349.0,58348.0,1.08780564]
[1720811502387,0.03681128,58349.0,58348.0,1.08780564]
[1720811502653,0.03681128,58349.0,58348.0,1.02780564]
[1720811502902,0.03681128,58349.0,58348.0,0.68503564]
[1720811504374,0.03681128,58349.0,58348.0,0.8538168]
[1720811504835,0.03681128,58349.0,58348.0,1.6393568]
[1720811505055,0.0374336,58349.0,58348.0,1.83927058]
[1720811505273,0.12949141,58349.0,58348.0,1.87362058]
[1720811505492,0.10378588,58349.0,58348.0,2.21639058]
[1720811505712,0.001,58349.0,58348.0,2.21639058]
[1720811505930,0.0513884,58349.0,58348.0,2.39099058]
[1720811506380,0.0513884,58350.0,58349.0,2.36439154]
[1720811506605,0.6607,58351.0,58350.0,0.89332854]
[1720811506843,0.6607,58351.0,58350.0,2.26436454]
[1720811507082,0.6607,58351.0,58350.0,2.38991921]
[1720811509310,0.6617,58351.0,58350.0,2.40391921]
[1720811509754,0.6607,58351.0,58350.0,2.38991921]
[1720811509986,0.6607,58351.0,58350.0,2.40391921]
[1720811510222,0.6617,58351.0,58350.0,2.40391921]
[1720811510676,0.6617,58351.0,58350.0,2.20391921]
[1720811511392,0.6607,58351.0,58350.0,2.18991921]
[1720811511629,0.6617,58351.0,58350.0,2.20291921]
[1720811512382,0.6617,58351.0,58350.0,1.57956021]
[1720811512628,0.6617,58351.0,58350.0,0.44250205]
[1720811512884,0.6617,58351.0,58350.0,0.75091105]
[1720811513134,0.6617,58351.0,58350.0,0.73791105]
[1720811513135,0.6607,58351.0,58350.0,0.73791105]
[1720811513437,0.6607,58351.0,58350.0,0.33515205]
[1720811513643,0.96040986,58351.0,58350.0,0.01857305]
[1720811514324,0.96040986,58351.0,58350.0,0.01677351]
[1720811514325,1.69888656,58351.0,58350.0,0.01677351]
[1720811514548,1.69888656,58351.0,58350.0,0.03057305]
[1720811514549,2.04263956,58351.0,58350.0,0.03057305]
[1720811514785,2.04263956,58351.0,58350.0,0.01379954]
[1720811514992,2.04263956,58351.0,58350.0,0.00179954]
[1720811514993,2.04163956,58351.0,58350.0,0.00179954]
[1720811515256,2.04263956,58351.0,58350.0,0.01379954]
[1720811515499,2.04296015,58351.0,58350.0,0.01379954]
[1720811515739,2.04296015,58351.0,58350.0,0.00179954]
[1720811515971,2.04196015,58351.0,58350.0,0.00179954]
[1720811516219,2.04296015,58351.0,58350.0,0.007]
[1720811516453,2.14296015,58351.0,58350.0,0.007]
[1720811517109,2.20276015,58351.0,58350.0,0.007]
[1720811517618,2.14296015,58351.0,58350.0,0.007]
[1720811517834,2.14296015,58351.0,58350.0,0.00623839]
[1720811518298,1.199677,58349.0,58348.0,0.001013]
[1720811518523,1.23600215,58349.0,58348.0,0.001013]
[1720811518938,1.23915706,58349.0,58348.0,0.001013]
[1720811519367,1.24015706,58349.0,58348.0,0.001013]
[1720811519581,1.24015706,58349.0,58348.0,0.004013]
[1720811520023,1.24015706,58349.0,58348.0,0.001013]
[1720811520275,1.23709353,58349.0,58348.0,0.00261254]
[1720811520510,0.89332853,58349.0,58348.0,0.00261254]
[1720811520739,0.89332853,58349.0,58348.0,0.00281254]
[1720811520953,0.20879853,58349.0,58348.0,0.00281254]
[1720811521206,0.20879853,58349.0,58348.0,0.03459339]
[1720811521207,0.89432853,58349.0,58348.0,0.03459339]
[1720811521424,0.857912,58349.0,58348.0,0.00281254]
[1720811521647,0.89503977,58349.0,58348.0,0.00581254]
[1720811521865,0.89503977,58349.0,58348.0,0.02259442]
[1720811522089,0.89503587,58349.0,58348.0,0.01959442]
[1720811522345,0.89603587,58349.0,58348.0,0.02659442]
[1720811522566,1.23880087,58349.0,58348.0,0.02659442]
[1720811523048,1.23880087,58349.0,58348.0,0.008013]
[1720811523530,1.23880087,58349.0,58348.0,0.00981254]
[1720811524023,0.89586323,58349.0,58348.0,0.00981254]
[1720811524709,0.89616414,58349.0,58348.0,0.00981254]
[1720811524952,0.858912,58349.0,58348.0,0.00981254]
[1720811525197,0.89616414,58349.0,58348.0,0.00961254]
[1720811525435,1.23892914,58349.0,58348.0,0.008013]
[1720811525673,1.30332914,58349.0,58348.0,0.008013]
[1720811527818,1.70966654,58349.0,58348.0,0.008013]
[1720811528318,2.0523164,58349.0,58348.0,0.008013]
[1720811528782,1.479514,58349.0,58348.0,0.008013]
[1720811529017,1.48157753,58349.0,58348.0,0.001013]
[1720811529260,1.48557753,58349.0,58348.0,0.001013]
[1720811529486,1.65574082,58349.0,58348.0,0.001013]
[1720811530202,1.482514,58349.0,58348.0,0.001013]
[1720811530426,1.48557753,58349.0,58348.0,0.001013]
[1720811530842,1.482514,58349.0,58348.0,0.001013]
[1720811530983,1.65573805,58349.0,58348.0,0.001013]
[1720811531210,1.65173805,58349.0,58348.0,0.001013]
[1720811531429,1.65473805,58349.0,58348.0,0.001013]
[1720811531620,1.48157919,58349.0,58348.0,0.001013]
[1720811531829,1.47857919,58349.0,58348.0,0.001013]
[1720811532036,1.441377,58349.0,58348.0,0.001013]
[1720811532238,1.5111622,58349.0,58348.0,0.00261254]
[1720811532536,1.33794603,58349.0,58348.0,0.001013]
[1720811532742,2.31269923,58349.0,58348.0,0.001013]
[1720811532938,2.13948514,58349.0,58348.0,0.001013]
[1720811534004,2.6806506,58349.0,58348.0,0.001013]
[1720811534663,2.68371413,58349.0,58348.0,0.001013]
[1720811534880,2.6464451,58349.0,58348.0,0.001013]
[1720811535079,2.6810433,58349.0,58348.0,0.001013]
[1720811535522,2.59592895,58349.0,58348.0,0.002013]
[1720811536734,2.59592895,58349.0,58348.0,0.001013]
[1720811536956,1.740327,58342.0,58341.0,0.000913]
[1720811537169,1.87798873,58342.0,58341.0,0.000913]
[1720811538043,1.88298873,58342.0,58341.0,0.001913]
[1720811538510,1.82318873,58342.0,58341.0,0.001913]
[1720811538738,2.05604229,58342.0,58341.0,0.001913]
[1720811538966,1.88298873,58342.0,58341.0,0.001913]
[1720811539198,1.87298873,58342.0,58341.0,0.001913]
[1720811539406,2.04601312,58342.0,58341.0,0.001913]
[1720811539626,1.81318873,58342.0,58341.0,0.001913]
[1720811540041,1.98621316,58342.0,58341.0,0.001913]
[1720811540674,2.04601316,58342.0,58341.0,0.001913]
[1720811540885,1.87298873,58342.0,58341.0,0.001913]
[1720811541306,2.04587702,58342.0,58341.0,0.001913]
[1720811541525,1.835227,58342.0,58341.0,0.001913]
[1720811541761,2.0460796,58342.0,58341.0,0.001913]
[1720811541981,1.81331044,58342.0,58341.0,0.001913]
[1720811542215,1.87311044,58342.0,58341.0,0.001913]
[1720811542446,1.81331044,58342.0,58341.0,0.001913]
[1720811542675,1.87311044,58342.0,58341.0,0.001913]
[1720811543570,1.88301068,58342.0,58341.0,0.001913]
[1720811544862,1.84512724,58342.0,58341.0,0.001913]
[1720811545082,1.88271345,58342.0,58341.0,0.001913]
[1720811545527,1.88241856,58342.0,58341.0,0.001913]
[1720811545752,2.08081902,58342.0,58341.0,0.001913]
[1720811545970,1.88241856,58342.0,58341.0,0.001913]
[1720811546821,2.52526596,58342.0,58341.0,0.001913]
[1720811547042,2.52516596,58342.0,58341.0,0.001913]
[1720811547465,1.602584,58336.0,58335.0,0.000913]
[1720811547683,1.89027532,58336.0,58335.0,0.000913]
[1720811548142,1.852884,58336.0,58335.0,0.000913]
[1720811548358,1.89062262,58336.0,58335.0,0.000913]
[1720811549286,1.89052262,58336.0,58335.0,0.000913]
[1720811549767,1.83515432,58336.0,58335.0,0.000913]
[1720811550613,1.83515432,58336.0,58335.0,0.003913]
[1720811550614,1.89485432,58336.0,58335.0,0.003913]
[1720811550828,1.83515432,58336.0,58335.0,0.003913]
[1720811551057,1.83515432,58336.0,58335.0,0.000913]
[1720811551462,1.83805432,58336.0,58335.0,0.000913]
[1720811551671,1.83834512,58336.0,58335.0,0.000913]
[1720811551893,2.12150242,58336.0,58335.0,0.000913]
[1720811552306,2.12450242,58336.0,58335.0,0.000913]
[1720811552733,2.12440242,58336.0,58335.0,0.000913]
[1720811552936,2.12440242,58336.0,58335.0,0.100913]
[1720811553167,1.97077072,58336.0,58335.0,0.100913]
[1720811553379,2.91046742,58336.0,58335.0,0.00592113]
[1720811553612,2.91046742,58336.0,58332.0,0.0058248]
[1720811553613,1.88206546,58333.0,58332.0,0.0058248]
[1720811553829,2.08429488,58333.0,58332.0,0.0058248]
[1720811554041,2.52715388,58333.0,58332.0,0.0058248]
[1720811554265,2.52715388,58333.0,58317.0,0.846]
[1720811554266,0.23217,58319.0,58303.0,0.1384]
[1720811554492,1.90312288,58319.0,58318.0,0.00747975]